Workbook

Sheet Calculator
C3: SVCE Residential Cost Comparison Calculator | I3: Updated 7/3/2017
C6: =IF(ISNUMBER(SEARCH("-1",D9)),"Enter Your Total Monthly Usage (kWh)","") -> Enter Your Total Monthly Usage (kWh) | E6: Select Your Billing Month | F6: May-Oct
C7: Enter usage for one summer (May-Oct) or one winter (Nov-Apr) month | E7: Select which range of months your bill falls in
C8: Additional Rate Options
C9: Non-Basic Rate Schedule | D9: Basic Residential (E-1)
C10: =IF(VLOOKUP($D$9,Rates!$A$2:$H$14,3,FALSE)=FALSE,"","Summer Peak Usage (kWh)") ->  | F10: =IF(VLOOKUP($D$9,Rates!$A$2:$H$14,6,FALSE)=FALSE,"","Winter Peak Usage (kWh)") -> 
C11: =IF(VLOOKUP($D$9,Rates!$A$2:$H$14,4,FALSE)=FALSE,"","Summer Partial Peak Usage (kWh)") ->  | F11: =IF(VLOOKUP($D$9,Rates!$A$2:$H$14,7,FALSE)=FALSE,"","Winter Partial Peak Usage (kWh)") -> 
C12: =IF(VLOOKUP($D$9,Rates!$A$2:$H$14,5,FALSE)=FALSE,"","Summer Off Peak Usage (kWh)") ->  | F12: =IF(VLOOKUP($D$9,Rates!$A$2:$H$14,8,FALSE)=FALSE,"","Winter Off Peak Usage (kWh)") -> 
E14: Optional Information (Default Values Represent a Typical Customer)
C15: Days in Billing Cycle | D15: 31 | F15: Baseline Territory (click for map) | G15: X
C16: Primary Heating Source | D16: Gas | F16: PCIA Vintage (from PG&E Delivery page of your bill) | G16: 2017
C18: (usage details can typically be found on the third page of your bill)
E19: SVCE GreenStart | F19: PG&E Service | G19: SVCE GreenPrime
D20: PG&E Delivery Costs | E20: =F20 -> 0 | F20: =IFERROR('Data & Calculations'!B74,0) -> 0 | G20: =F20 -> 0
D21: Generation Costs | E21: ='Data & Calculations'!C75 -> 0 | F21: ='Data & Calculations'!B75 -> 0 | G21: =E21+'Data & Calculations'!I59*'Data & Calculations'!B69 -> 0
D22: Additional PG&E Fees | E22: ='Data & Calculations'!C76 -> 0 | G22: =E22 -> 0
D23: Total Electric Charges | E23: =SUM(E20:E22) -> 0 | F23: =SUM(F20:F22) -> 0 | G23: =SUM(G20:G22) -> 0
C26: Frequently Asked Questions:
C27: Q: I have a CARE (California Affordable Rates for Energy) discount. Will I still receive this with SVCE?
C28: A: CARE is a state-mandated program, and you'll receive the same discount as before. To determine applicable CARE discounts, select CARE rates under Advanced Options (above).
C30: Q: I have medical equipment at home and am granted a special rate by PG&E (also known as a "Medical Baseline" rate). Will I remain eligible for the Medical Baseline rate with SVCE?
C31: A: Yes. SVCE customers remain eligible for Medical Baseline rates and will continue to receive applicable discounts after enrollment in SVCE service. Additionally, they are exempt from additional PG&E fees.
C34: Q: Does SVCE offer special rates for Electric Vehicle owners?
C35: A: Silicon Valley Clean Energy's rates mirror those of PG&E, so your rate plan remains the same, but will cost 1% less than PG&E's equivalent generation rate for GreenStart.
C37: Q: Are SVCE customers exempt from tiered rates - rates that progressively increase as customers use more energy throughout each billing period?
C38: A: No. Tiered rates are an important element of utility rate design and are mandated by the California Public Utilities Commission. Tiered rates are intended to promote energy conservation and are assessed through PG&E's delivery charges for all utility customers.
C41: For more commonly asked questions, please visit our full FAQ. https://www.svcleanenergy.org/faqs
C46: Service Options | D46: Renewable Content (% of Total Power Supply) | E46: Emissions Factor (lbs. CO2/MWh)* | F46: Estimated Emissions (lbs. CO2) | G46: Service Description
C47: SVCE GreenStart (50%) | D47: 0.5 | E47: <25 | F47: =CONCATENATE(ROUND(SUM(D$10:G$12,D$6)*25/1000,0)," lbs.") -> 0 lbs. | G47: Basic SVCE service (default)
C48: PG&E Standard (30%) | D48: 0.3 | E48: 405 | F48: =CONCATENATE(ROUND(SUM(D$10:G$12,D$6)*E48/1000,0)," lbs.") -> 0 lbs. | G48: Basic PG&E service (opt out)
C49: SVCE GreenPrime (100%) | D49: 1 | E49: 0 | F49: =CONCATENATE(ROUND(SUM(D$10:G$12,D$6)*E49/1000,1)," lbs.") -> 0 lbs. | G49: Optional 100% renewable SVCE service
C50: PG&E Solar Choice (50%) | D50: 0.65 | E50: 202.5 | F50: 0 lbs. | G50: Optional 50% solar PG&E service
C51: PG&E Solar Choice (100%) | D51: 1 | E51: 0 | F51: 0 lbs. | G51: Optional 100% solar PG&E service
C52: * As reported to the California Energy Commission’s Power Source Disclosure Program, reflecting PG&E's most currently available emission factor (for CY 2015), as verified by The Climate Registry. PG&E CY 2016 data is subject to an independent audit and verification that will not be completed until October 1, 2017. Silicon Valley Clean Energy’s generation data is forecast for 2017 and may be subject to change. Actual generation data will be reported to the California Energy Commission in 2018.

Sheet Data & Calculations (hidden)
A1: Determined Bundled Rate (automated)
A2: =Calculator!D9 -> Basic Residential (E-1) | B2: =Rates!B2 -> All Usage | C2: =Rates!C2 -> S Pk | D2: =Rates!D2 -> S Pt | E2: =Rates!E2 -> S Off | F2: =Rates!F2 -> W Pk | G2: =Rates!G2 -> W Pt | H2: =Rates!H2 -> W Off | I2: =Rates!I2 -> Meter Charge | J2: =Rates!J2 -> Minimum Bill
A3: Tier 1 | B3: =VLOOKUP(Calculator!$D$9,Rates!$A$3:$AB$16,MATCH(B$2,Rates!$A$2:$J$2,0),FALSE) -> 0.19979 | C3: =VLOOKUP(Calculator!$D$9,Rates!$A$3:$AB$16,MATCH(C$2,Rates!$A$2:$J$2,0),FALSE) -> FALSE | D3: =VLOOKUP(Calculator!$D$9,Rates!$A$3:$AB$16,MATCH(D$2,Rates!$A$2:$J$2,0),FALSE) -> FALSE | E3: =VLOOKUP(Calculator!$D$9,Rates!$A$3:$AB$16,MATCH(E$2,Rates!$A$2:$J$2,0),FALSE) -> FALSE | F3: =VLOOKUP(Calculator!$D$9,Rates!$A$3:$AB$16,MATCH(F$2,Rates!$A$2:$J$2,0),FALSE) -> FALSE | G3: =VLOOKUP(Calculator!$D$9,Rates!$A$3:$AB$16,MATCH(G$2,Rates!$A$2:$J$2,0),FALSE) -> FALSE | H3: =VLOOKUP(Calculator!$D$9,Rates!$A$3:$AB$16,MATCH(H$2,Rates!$A$2:$J$2,0),FALSE) -> FALSE | I3: =IFERROR(VLOOKUP(Calculator!$D$9,Rates!$A$3:$AB$16,MATCH(I$2,Rates!$A$2:$J$2,0),FALSE),0) -> 0 | J3: =IFERROR(VLOOKUP(Calculator!$D$9,Rates!$A$3:$AB$16,MATCH(J2,Rates!$A$2:$J$2,0),FALSE),0) -> 0.32854
A4: Tier 2 | B4: =VLOOKUP(Calculator!$D$9,Rates!$A$3:$AB$16,MATCH(B$2,Rates!$A$2:$J$2,0)+10,FALSE) -> 0.27612 | C4: =VLOOKUP(Calculator!$D$9,Rates!$A$3:$AB$16,MATCH(C$2,Rates!$A$2:$J$2,0)+10,FALSE) -> FALSE | D4: =VLOOKUP(Calculator!$D$9,Rates!$A$3:$AB$16,MATCH(D$2,Rates!$A$2:$J$2,0)+10,FALSE) -> FALSE | E4: =VLOOKUP(Calculator!$D$9,Rates!$A$3:$AB$16,MATCH(E$2,Rates!$A$2:$J$2,0)+10,FALSE) -> FALSE | F4: =VLOOKUP(Calculator!$D$9,Rates!$A$3:$AB$16,MATCH(F$2,Rates!$A$2:$J$2,0)+10,FALSE) -> FALSE | G4: =VLOOKUP(Calculator!$D$9,Rates!$A$3:$AB$16,MATCH(G$2,Rates!$A$2:$J$2,0)+10,FALSE) -> FALSE | H4: =VLOOKUP(Calculator!$D$9,Rates!$A$3:$AB$16,MATCH(H$2,Rates!$A$2:$J$2,0)+10,FALSE) -> FALSE
A5: Tier 3 | B5: =VLOOKUP(Calculator!$D$9,Rates!$A$3:$AB$16,MATCH(B$2,Rates!$A$2:$J$2,0)+19,FALSE) -> 0.40139 | C5: =VLOOKUP(Calculator!$D$9,Rates!$A$3:$AB$16,MATCH(C$2,Rates!$A$2:$J$2,0)+19,FALSE) -> FALSE | D5: =VLOOKUP(Calculator!$D$9,Rates!$A$3:$AB$16,MATCH(D$2,Rates!$A$2:$J$2,0)+19,FALSE) -> FALSE | E5: =VLOOKUP(Calculator!$D$9,Rates!$A$3:$AB$16,MATCH(E$2,Rates!$A$2:$J$2,0)+19,FALSE) -> FALSE | F5: =VLOOKUP(Calculator!$D$9,Rates!$A$3:$AB$16,MATCH(F$2,Rates!$A$2:$J$2,0)+19,FALSE) -> FALSE | G5: =VLOOKUP(Calculator!$D$9,Rates!$A$3:$AB$16,MATCH(G$2,Rates!$A$2:$J$2,0)+19,FALSE) -> FALSE | H5: =VLOOKUP(Calculator!$D$9,Rates!$A$3:$AB$16,MATCH(H$2,Rates!$A$2:$J$2,0)+19,FALSE) -> FALSE
A7: Determined Bundled Charges (automated)
A8: =A2 -> Basic Residential (E-1) | B8: All Usage | C8: S Pk | D8: S Pt | E8: S Off | F8: W Pk | G8: W Pt | H8: W Off | I8: Meter Charge | J8: Total
A9: =A3 -> Tier 1 | B9: =B3*C64 ->  | I9: =I3*Calculator!D15 -> 0
A10: =A4 -> Tier 2
A11: =A5 -> Tier 3
A12: Total | B12: =SUM(B9:B11) ->  | I12: =IFERROR(SUM(I9:I11),0) -> 0 | J12: =SUM(B12:I12) -> 
A14: Determined Generation Rates (automated)
A15: =A2 -> Basic Residential (E-1) | B15: All Usage | C15: S Pk | D15: S Pt | E15: S Off | F15: W Pk | G15: W Pt | H15: W Off | I15: NEM Bonus
A16: PGE | B16: =VLOOKUP(Calculator!$D$9,Rates!$A$21:$H$34,MATCH(B$15,Rates!$A$2:$J$2,0),FALSE) -> 0.09838 | C16: =VLOOKUP(Calculator!$D$9,Rates!$A$21:$H$34,MATCH(C$15,Rates!$A$2:$J$2,0),FALSE) -> FALSE | D16: =VLOOKUP(Calculator!$D$9,Rates!$A$21:$H$34,MATCH(D$15,Rates!$A$2:$J$2,0),FALSE) -> FALSE | E16: =VLOOKUP(Calculator!$D$9,Rates!$A$21:$H$34,MATCH(E$15,Rates!$A$2:$J$2,0),FALSE) -> FALSE | F16: =VLOOKUP(Calculator!$D$9,Rates!$A$21:$H$34,MATCH(F$15,Rates!$A$2:$J$2,0),FALSE) -> FALSE | G16: =VLOOKUP(Calculator!$D$9,Rates!$A$21:$H$34,MATCH(G$15,Rates!$A$2:$J$2,0),FALSE) -> FALSE | H16: =VLOOKUP(Calculator!$D$9,Rates!$A$21:$H$34,MATCH(H$15,Rates!$A$2:$J$2,0),FALSE) -> FALSE
A17: SVCE | B17: =VLOOKUP(Calculator!$D$9,Rates!$A$37:$H$50,MATCH(B$15,Rates!$A$2:$J$2,0),FALSE) -> 0.06763 | C17: =VLOOKUP(Calculator!$D$9,Rates!$A$37:$H$50,MATCH(C$15,Rates!$A$2:$J$2,0),FALSE) -> FALSE | D17: =VLOOKUP(Calculator!$D$9,Rates!$A$37:$H$50,MATCH(D$15,Rates!$A$2:$J$2,0),FALSE) -> FALSE | E17: =VLOOKUP(Calculator!$D$9,Rates!$A$37:$H$50,MATCH(E$15,Rates!$A$2:$J$2,0),FALSE) -> FALSE | F17: =VLOOKUP(Calculator!$D$9,Rates!$A$37:$H$50,MATCH(F$15,Rates!$A$2:$J$2,0),FALSE) -> FALSE | G17: =VLOOKUP(Calculator!$D$9,Rates!$A$37:$H$50,MATCH(G$15,Rates!$A$2:$J$2,0),FALSE) -> FALSE | H17: =VLOOKUP(Calculator!$D$9,Rates!$A$37:$H$50,MATCH(H$15,Rates!$A$2:$J$2,0),FALSE) -> FALSE | I17: =B69 -> 0.008
A19: Determined Generation Charges (automated)
A20: =A2 -> Basic Residential (E-1) | B20: All Usage | C20: S Pk | D20: S Pt | E20: S Off | F20: W Pk | G20: W Pt | H20: W Off | I20: NEM Bonus | J20: Total
A21: PGE | B21: =B16*B$59 -> 0 | C21: 0 | D21: 0 | E21: 0 | F21: 0 | G21: 0 | H21: 0 | J21: =SUM(B21:H21) -> 0
A22: SVCE | B22: 0 | C22: 0 | D22: 0 | E22: 0 | F22: 0 | G22: 0 | H22: 0 | I22: =SUMIF(B59:H59,"<0")*I17 -> 0 | J22: =SUM(B22:I22) -> 0
A24: Determined Delivery Charges (automated)
A25: =A2 -> Basic Residential (E-1) | B25: All Usage | C25: S Pk | D25: S Pt | E25: S Off | F25: W Pk | G25: W Pt | H25: W Off | I25: Meter Charge | J25: Total
A26: PGE | B26: =B$12-B21 ->  | I26: =I9-I21 -> 0 | J26: =SUM(B26:I26) -> 
A27: SVCE | I27: =I26 -> 0
A29: Baseline Quantities (annual update)
A30: Basic (Gas) | B30: Summer | C30: Winter | E30: Electric | F30: Summer | G30: Winter
A31: T | B31: 7 | C31: 8.5 | E31: T | F31: 8.3 | G31: 14.9
A32: X | B32: 10.1 | C32: 10.9 | E32: X | F32: 9.3 | G32: 16.7
A34: Fees (annual update) | B34: PCIA | C34: FF | D34: Total
A35: Pre-2009 | B35: 0 | C35: 0.00083 | D35: =SUM(B35:C35) -> 0.00083
A36: 2009 | B36: 0.0247 | C36: 0.00062 | D36: 0.02532
A37: 2010 | B37: 0.02803 | C37: 0.00059 | D37: 0.02862
A38: 2011 | B38: 0.02922 | C38: 0.00058 | D38: 0.0298
A39: 2012 | B39: 0.03014 | C39: 0.00057 | D39: 0.03071
A40: 2013 | B40: 0.03001 | C40: 0.00058 | D40: 0.03059
A41: 2014 | B41: 0.02949 | C41: 0.00058 | D41: 0.03007
A42: 2015 | B42: 0.02909 | C42: 0.00058 | D42: 0.02967
A43: 2016 | B43: 0.02919 | C43: 0.00058 | D43: 0.02977
A44: 2017 | B44: 0.02919 | C44: 0.00058 | D44: 0.02977
A48: Extra Fee Calculations (automated - DO NOT TOUCH; Vintage calculation needs to be updated periodically though)
A49: Vintage: | B49: =Calculator!G16 -> 2017
A50: Determined Fees: | B50: =VLOOKUP(B49,A35:D46,4) -> 0.02977 | C50: Franchise Only: | D50: =VLOOKUP(B49,A35:D42,3) -> 0.00058
A52: Delivery Rates (auto updates - DO NOT TOUCH)
A53: =A2 -> Basic Residential (E-1) | B53: All Usage | C53: S Pk | D53: S Pt | E53: S Off | F53: W Pk | G53: W Pt | H53: W Off | I53: Meter Charge
A54: Tier 1 | B54: =B3-B$16 -> 0.10141 | C54: 0 | D54: 0 | E54: 0 | F54: 0 | G54: 0 | H54: 0 | I54: 0
A55: Tier 2 | B55: 0.17774 | C55: 0 | D55: 0 | E55: 0 | F55: 0 | G55: 0 | H55: 0 | I55: 0
A56: High Usage | B56: 0.30301 | C56: 0 | D56: 0 | E56: 0 | F56: 0 | G56: 0 | H56: 0 | I56: 0
A58: Total kWh (automated) | B58: All Usage | C58: S Pk | D58: S Pt | E58: S Off | F58: W Pk | G58: W Pt | H58: W Off | I58: Total
A59: All Usage | B59: =IF(B3=FALSE,0,Calculator!D6) -> 0 | C59: =IF(C3=FALSE,0,Calculator!D10) -> 0 | D59: =IF(D3=FALSE,0,Calculator!D11) -> 0 | E59: =IF(E3=FALSE,0,Calculator!D12) -> 0 | F59: =IF(F3=FALSE,0,Calculator!G10) -> 0 | G59: =IF(G3=FALSE,0,Calculator!G11) -> 0 | H59: =IF(H3=FALSE,0,Calculator!G12) -> 0 | I59: =SUM(B59:H59) -> 0
A60: Pct of Total | B60: =B59/$I$59 ->  | C60: =C59/$I$59 -> 
A62: Tiering Calculations (auto updates - DO NOT TOUCH)
A63: Calculated Baseline: | B63: =IF(AND(Calculator!D16="Gas",Calculator!G15="T",Calculator!F6="May-Oct"),B31,IF(AND(Calculator!D16="Gas",Calculator!G15="X",Calculator!F6="May-Oct"),B32,IF(AND(Calculator!D16="Gas",Calculator!G15="T",Calculator!F6="Nov-Apr"),C31,IF(AND(Calculator!D16="Gas",Calculator!G15="X",Calculator!F6="Nov-Apr"),C32,IF(AND(Calculator!D16="Electric",Calculator!G15="T",Calculator!F6="May-Oct"),F31,IF(AND(Calculator!D16="Electric",Calculator!G15="X",Calculator!F6="May-Oct"),F32,IF(AND(Calculator!D16="Electric",Calculator!G15="T",Calculator!F6="Nov-Apr"),G31,IF(AND(Calculator!D16="Electric",Calculator!G15="X",Calculator!F6="Nov-Apr"),G32,"ERROR")))))))) -> 10.1 | C63: =B58 -> All Usage | D63: S Pk | E63: S Pt | F63: S Off | G63: W Pk | H63: W Pt | I63: W Off | J63: Total Tier Allocation
A64: Tier 1 | B64: =B63*Calculator!D15 -> 313.1 | C64: =B$60*$J64 ->  | J64: =MIN(B64,I59) -> 0
A65: Tier 2 | B65: =B64*3 -> 939.3 | C65: =B$60*$J65 ->  | J65: =MIN(B65,I59-J64) -> 0
A66: High Usage Rate | B66: all above | J66: =MAX(0,I59-J64-J65) -> 0
A68: Misc Rates
A69: GreenPrime Rate | B69: 0.008
A70: Minimum Bill | B70: =J3*Calculator!D15 -> 10.18474 | C70: (automated)
A72: Totals (automated)
B73: PG&E | C73: SVCE
A74: Delivery | B74: =MAX(B70,J26) ->  | C74: =B74 -> 
A75: Generation | B75: =J21 -> 0 | C75: =J22 -> 0
A76: PCIA/FF | B76: 0 | C76: =B50*I59 -> 0
A77: Total | B77: =SUM(B74:B76) ->  | C77: =SUM(C74:C76) -> 

Sheet Rates (hidden)
A1: Bundled Rate
A2: Tier 1 | B2: All Usage | C2: S Pk | D2: S Pt | E2: S Off | F2: W Pk | G2: W Pt | H2: W Off | I2: Meter Charge | J2: Minimum Bill | K2: Tier 2 | L2: All Usage | M2: S Pk | N2: S Pt | O2: S Off | P2: W Pk | Q2: W Pt | R2: W Off | T2: High Usage | U2: All Usage | V2: S Pk | W2: S Pt | X2: S Off | Y2: W Pk | Z2: W Pt | AA2: W Off
A3: Basic Residential (E-1) | B3: 0.19979 | C3: FALSE | D3: FALSE | E3: FALSE | F3: FALSE | G3: FALSE | H3: FALSE | J3: 0.32854 | K3: =A3 -> Basic Residential (E-1) | L3: 0.27612 | M3: FALSE | N3: FALSE | O3: FALSE | P3: FALSE | Q3: FALSE | R3: FALSE | T3: =K3 -> Basic Residential (E-1) | U3: 0.40139 | V3: FALSE | W3: FALSE | X3: FALSE | Y3: FALSE | Z3: FALSE | AA3: FALSE
A4: Basic CARE Res. (EL-1) | B4: 0.12643 | C4: FALSE | D4: FALSE | E4: FALSE | F4: FALSE | G4: FALSE | H4: FALSE | J4: 0.16427 | K4: =A4 -> Basic CARE Res. (EL-1) | L4: 0.17261 | M4: FALSE | N4: FALSE | O4: FALSE | P4: FALSE | Q4: FALSE | R4: FALSE | T4: Basic CARE Res. (EL-1) | U4: 0.2397 | V4: FALSE | W4: FALSE | X4: FALSE | Y4: FALSE | Z4: FALSE | AA4: FALSE
A5: E-TOU-A | B5: =L5 -> FALSE | C5: =M5+D17 -> 0.30506 | D5: =N5 -> FALSE | E5: =O5+D17 -> 0.22948 | F5: =P5+D17 -> 0.18709 | G5: FALSE | H5: =R5+D17 -> 0.17279 | J5: =J3 -> 0.32854 | K5: =A5 -> E-TOU-A | L5: FALSE | M5: 0.39336 | N5: FALSE | O5: 0.31778 | P5: 0.27539 | Q5: FALSE | R5: 0.26109 | T5: E-TOU-A | U5: FALSE | V5: 0.39336 | W5: FALSE | X5: 0.31778 | Y5: 0.27539 | Z5: FALSE | AA5: 0.26109
A6: E-TOU-B | B6: =L6 -> FALSE | C6: =M6 -> 0.36335 | D6: FALSE | E6: 0.26029 | F6: 0.22588 | G6: FALSE | H6: 0.20708 | J6: =J3 -> 0.32854 | K6: E-TOU-B | L6: FALSE | M6: 0.36335 | N6: FALSE | O6: 0.26029 | P6: 0.22588 | Q6: FALSE | R6: 0.20708 | T6: E-TOU-B | U6: FALSE | V6: 0.36335 | W6: FALSE | X6: 0.26029 | Y6: 0.22588 | Z6: FALSE | AA6: 0.20708
A7: EL-TOU-A (CARE) | B7: =L7 -> FALSE | C7: =M7+D18 -> 0.18906 | D7: FALSE | E7: =O7+D18 -> 0.14144 | F7: =P7+D18 -> 0.11474 | G7: FALSE | H7: =R7+D18 -> 0.10573 | J7: =J4 -> 0.16427 | K7: EL-TOU-A (CARE) | L7: FALSE | M7: 0.23685 | N7: FALSE | O7: 0.18923 | P7: 0.16253 | Q7: FALSE | R7: 0.15352 | T7: EL-TOU-A (CARE) | U7: FALSE | V7: 0.23685 | W7: FALSE | X7: 0.18923 | Y7: 0.16253 | Z7: FALSE | AA7: 0.15352
A8: EL-TOU-B (CARE) | B8: FALSE | C8: 0.22163 | D8: FALSE | E8: 0.1567 | F8: 0.13502 | G8: FALSE | H8: 0.12317 | J8: =J4 -> 0.16427 | K8: EL-TOU-B (CARE) | L8: FALSE | M8: 0.22163 | N8: FALSE | O8: 0.1567 | P8: 0.13502 | Q8: FALSE | R8: 0.12317 | T8: EL-TOU-B (CARE) | U8: FALSE | V8: 0.22163 | W8: FALSE | X8: 0.1567 | Y8: 0.13502 | Z8: FALSE | AA8: 0.12317
A9: EV-A | B9: FALSE | C9: 0.45389 | D9: 0.24986 | E9: 0.12225 | F9: 0.32018 | G9: 0.19794 | H9: 0.12503 | J9: =J3 -> 0.32854 | K9: EV-A | L9: FALSE | M9: 0.45389 | N9: 0.24986 | O9: 0.12225 | P9: 0.32018 | Q9: 0.19794 | R9: 0.12503 | T9: EV-A | U9: FALSE | V9: 0.45389 | W9: 0.24986 | X9: 0.12225 | Y9: 0.32018 | Z9: 0.19794 | AA9: 0.12503
A10: EV-B | B10: FALSE | C10: 0.44738 | D10: 0.2466 | E10: 0.12179 | F10: 0.31325 | G10: 0.19447 | H10: 0.12453 | I10: 0.04928 | J10: =J3 -> 0.32854 | K10: EV-B | L10: FALSE | M10: 0.44738 | N10: 0.2466 | O10: 0.12179 | P10: 0.31325 | Q10: 0.19447 | R10: 0.12453 | T10: EV-B | U10: FALSE | V10: 0.44738 | W10: 0.2466 | X10: 0.12179 | Y10: 0.31325 | Z10: 0.19447 | AA10: 0.12453
A12: ="--- Closed Rates ---" -> --- Closed Rates --- | K12: =A12 -> --- Closed Rates --- | T12: =K12 -> --- Closed Rates ---
A13: E-6 (Time-of-Use) | B13: FALSE | C13: 0.35933 | D13: 0.24406 | E13: 0.16728 | F13: FALSE | G13: 0.18845 | H13: 0.17162 | I13: 0.25298 | J13: =J3 -> 0.32854 | K13: E-6 (Time-of-Use) | L13: FALSE | M13: 0.43566 | N13: 0.32039 | O13: 0.24362 | P13: FALSE | Q13: 0.26478 | R13: 0.24795 | T13: =K13 -> E-6 (Time-of-Use) | U13: FALSE | V13: =M13 -> 0.43566 | W13: =N13 -> 0.32039 | X13: 0.24362 | Y13: FALSE | Z13: 0.26478 | AA13: 0.24795
A14: EL-6 (CARE, Time-of-Use) | B14: FALSE | C14: 0.24323 | D14: 0.15873 | E14: 0.10245 | F14: FALSE | G14: 0.11797 | H14: 0.10562 | I14: 0.20238 | J14: =J4 -> 0.16427 | K14: EL-6 (CARE, Time-of-Use) | L14: FALSE | M14: 0.29049 | N14: 0.20599 | O14: 0.14971 | P14: FALSE | Q14: 0.16521 | R14: 0.15287 | T14: =K14 -> EL-6 (CARE, Time-of-Use) | U14: FALSE | V14: =M14 -> 0.29049 | W14: =N14 -> 0.20599 | X14: =O14 -> 0.14971 | Y14: FALSE | Z14: =Q14 -> 0.16521 | AA14: =R14 -> 0.15287
A17: Baseline Credit (E-TOU only) | D17: -0.0883
A18: Baseline Credit (EL-TOU only) | D18: -0.04779
A20: PG&E Generation Rate | B20: All Usage | C20: =C2 -> S Pk | D20: S Pt | E20: S Off | F20: W Pk | G20: W Pt | H20: W Off
A21: =A3 -> Basic Residential (E-1) | B21: 0.09838 | C21: FALSE | D21: FALSE | E21: FALSE | F21: FALSE | G21: FALSE | H21: FALSE
A22: =A4 -> Basic CARE Res. (EL-1) | B22: =B21 -> 0.09838 | C22: FALSE | D22: FALSE | E22: FALSE | F22: FALSE | G22: FALSE | H22: FALSE
A23: =A5 -> E-TOU-A | B23: FALSE | C23: 0.18232 | D23: FALSE | E23: 0.10674 | F23: 0.09498 | G23: FALSE | H23: 0.08068
A24: =A6 -> E-TOU-B | B24: FALSE | C24: 0.20442 | D24: FALSE | E24: 0.10136 | F24: 0.09758 | G24: FALSE | H24: 0.07878
A25: =A7 -> EL-TOU-A (CARE) | B25: FALSE | C25: =C23 -> 0.18232 | D25: FALSE | E25: =E23 -> 0.10674 | F25: =F23 -> 0.09498 | G25: FALSE | H25: =H23 -> 0.08068
A26: EL-TOU-B (CARE) | B26: FALSE | C26: =C24 -> 0.20442 | D26: FALSE | E26: =E24 -> 0.10136 | F26: =F24 -> 0.09758 | G26: FALSE | H26: =H24 -> 0.07878
A27: =A9 -> EV-A | B27: FALSE | C27: 0.23092 | D27: 0.11128 | E27: 0.05593 | F27: 0.08629 | G27: 0.05391 | H27: 0.05792
A28: =A10 -> EV-B | B28: FALSE | C28: =C27 -> 0.23092 | D28: =D27 -> 0.11128 | E28: 0.05593 | F28: 0.08629 | G28: 0.05391 | H28: 0.05792
A30: =A12 -> --- Closed Rates ---
A31: =A13 -> E-6 (Time-of-Use) | B31: FALSE | C31: 0.21671 | D31: 0.11384 | E31: 0.07185 | F31: FALSE | G31: 0.09516 | H31: 0.08362
A32: =A14 -> EL-6 (CARE, Time-of-Use) | B32: FALSE | C32: =C31 -> 0.21671 | D32: =D31 -> 0.11384 | E32: 0.07185 | F32: FALSE | G32: 0.09516 | H32: 0.08362
A36: SVCEA Generation Rate | B36: All Usage | C36: =C2 -> S Pk | D36: =D2 -> S Pt | E36: S Off | F36: W Pk | G36: W Pt | H36: W Off
A37: =A3 -> Basic Residential (E-1) | B37: 0.06763 | C37: FALSE | D37: FALSE | E37: FALSE | F37: FALSE | G37: FALSE | H37: FALSE
A38: =A4 -> Basic CARE Res. (EL-1) | B38: =B37 -> 0.06763 | C38: FALSE | D38: FALSE | E38: FALSE | F38: FALSE | G38: FALSE | H38: FALSE
A39: =A5 -> E-TOU-A | B39: FALSE | C39: 0.15172 | D39: FALSE | E39: 0.07689 | F39: 0.06525 | G39: FALSE | H39: 0.05109
A40: =A6 -> E-TOU-B | B40: FALSE | C40: 0.17374 | D40: FALSE | E40: 0.07171 | F40: 0.06798 | G40: FALSE | H40: 0.04937
A41: =A7 -> EL-TOU-A (CARE) | B41: FALSE | C41: =C39 -> 0.15172 | D41: FALSE | E41: =E39 -> 0.07689 | F41: =F39 -> 0.06525 | G41: FALSE | H41: =H39 -> 0.05109
A42: EL-TOU-B (CARE) | B42: FALSE | C42: =C40 -> 0.17374 | D42: FALSE | E42: =E40 -> 0.07171 | F42: =F40 -> 0.06798 | G42: FALSE | H42: =H40 -> 0.04937
A43: =A9 -> EV-A | B43: FALSE | C43: 0.19884 | D43: 0.0804 | E43: 0.0256 | F43: 0.05566 | G43: 0.0236 | H43: 0.02757
A44: =A10 -> EV-B | B44: FALSE | C44: =C43 -> 0.19884 | D44: =D43 -> 0.0804 | E44: =E43 -> 0.0256 | F44: =F43 -> 0.05566 | G44: =G43 -> 0.0236 | H44: =H43 -> 0.02757
A46: =A12 -> --- Closed Rates ---
A47: =A13 -> E-6 (Time-of-Use) | B47: FALSE | C47: 0.18477 | D47: 0.08293 | E47: 0.04136 | F47: FALSE | G47: 0.06444 | H47: 0.05301
A48: =A14 -> EL-6 (CARE, Time-of-Use) | B48: FALSE | C48: =C47 -> 0.18477 | D48: =D47 -> 0.08293 | E48: =E47 -> 0.04136 | F48: FALSE | G48: =G47 -> 0.06444 | H48: =H47 -> 0.05301

Sheet Rebundled Rates (hidden)
B1: Rates for Usage | I1: Rates for Surplus Generation (Excess NEM Credits at billing date)
A2: =Rates!A3 -> Basic Residential (E-1) | B2: MCE Rebundled | C2: PG&E Bundled | D2: Result | I2: MCE Rebundled | J2: PG&E Bundled | K2: Result
A3: Up to Baseline | B3: =C3-VLOOKUP($A$2,Rates!$A$20:$H$33,2,0)+VLOOKUP($A$2,Rates!$A$36:$H$49,2,0)+VLOOKUP(MAX('Data & Calculations'!$A$35:$A$46),'Data & Calculations'!$A$35:$D$46,4,0) -> 0.19881 | C3: =VLOOKUP(A$2,Rates!$A$2:$AB$18,2,0) -> 0.19979 | D3: MCE's rate is | E3: =IF(B3<C3,"lower by","higher by") -> lower by | F3: =ABS(C3-B3) -> 0.00098 | G3: per kWh | I3: =B3+0.01 -> 0.20881 | J3: =C3 -> 0.19979 | K3: MCE's rate is | L3: =IF(I3<J3,"lower by","higher by") -> higher by | M3: =ABS(J3-I3) -> 0.00902 | N3: per kWh
A4: 100%-200% of Baseline | B4: =C4-VLOOKUP($A$2,Rates!$A$20:$H$33,2,0)+VLOOKUP($A$2,Rates!$A$36:$H$49,2,0)+VLOOKUP(MAX('Data & Calculations'!$A$35:$A$46),'Data & Calculations'!$A$35:$D$46,4,0) -> 0.27514 | C4: =VLOOKUP(A$2,Rates!$A$2:$AB$18,12,0) -> 0.27612 | D4: MCE's rate is | E4: =IF(B4<C4,"lower by","higher by") -> lower by | F4: =ABS(C4-B4) -> 0.00098 | G4: per kWh | I4: =B4+0.01 -> 0.28514 | J4: =C4 -> 0.27612 | K4: MCE's rate is | L4: =IF(I4<J4,"lower by","higher by") -> higher by | M4: =ABS(J4-I4) -> 0.00902 | N4: per kWh
A5: Over 200% of Baseline | B5: =C5-VLOOKUP($A$2,Rates!$A$20:$H$33,2,0)+VLOOKUP($A$2,Rates!$A$36:$H$49,2,0)+VLOOKUP(MAX('Data & Calculations'!$A$35:$A$46),'Data & Calculations'!$A$35:$D$46,4,0) -> 0.40041 | C5: =VLOOKUP(A$2,Rates!$A$2:$AB$18,21,0) -> 0.40139 | D5: MCE's rate is | E5: lower by | F5: 0.00098 | G5: per kWh | I5: 0.41041 | J5: 0.40139 | K5: MCE's rate is | L5: higher by | M5: 0.00902 | N5: per kWh
A7: =Rates!A5 -> E-TOU-A | B7: MCE Rebundled | C7: PG&E Bundled | D7: Result | I7: MCE Rebundled | J7: PG&E Bundled | K7: Result
A8: Summer Peak
A9: … up to Baseline | B9: =C9-VLOOKUP($A$7,Rates!$A$20:$H$33,3,0)+VLOOKUP($A$7,Rates!$A$36:$H$49,3,0)+VLOOKUP(MAX('Data & Calculations'!$A$35:$A$46),'Data & Calculations'!$A$35:$D$46,4,0) -> 0.30423 | C9: =VLOOKUP(A$7,Rates!$A$2:$AB$18,3,0) -> 0.30506 | D9: MCE's rate is | E9: =IF(B9<C9,"lower by","higher by") -> lower by | F9: =ABS(C9-B9) -> 0.00083 | G9: per kWh | I9: =B9+0.01 -> 0.31423 | J9: =C9 -> 0.30506 | K9: MCE's rate is | L9: =IF(I9<J9,"lower by","higher by") -> higher by | M9: =ABS(J9-I9) -> 0.00917 | N9: per kWh
A10: … above Baseline | B10: =C10-VLOOKUP($A$7,Rates!$A$20:$H$33,3,0)+VLOOKUP($A$7,Rates!$A$36:$H$49,3,0)+VLOOKUP(MAX('Data & Calculations'!$A$35:$A$46),'Data & Calculations'!$A$35:$D$46,4,0) -> 0.39253 | C10: =VLOOKUP(A$7,Rates!$A$2:$AB$18,13,0) -> 0.39336 | D10: MCE's rate is | E10: lower by | F10: 0.00083 | G10: per kWh | I10: =B10+0.01 -> 0.40253 | J10: =C10 -> 0.39336 | K10: MCE's rate is | L10: higher by | M10: 0.00917 | N10: per kWh
A11: Summer Off Peak
A12: … up to Baseline | B12: =C12-VLOOKUP($A$7,Rates!$A$20:$H$33,5,0)+VLOOKUP($A$7,Rates!$A$36:$H$49,5,0)+VLOOKUP(MAX('Data & Calculations'!$A$35:$A$46),'Data & Calculations'!$A$35:$D$46,4,0) -> 0.2294 | C12: =VLOOKUP(A$7,Rates!$A$2:$AB$18,5,0) -> 0.22948 | D12: MCE's rate is | E12: =IF(B12<C12,"lower by","higher by") -> lower by | F12: =ABS(C12-B12) -> 8e-05 | G12: per kWh | I12: =B12+0.01 -> 0.2394 | J12: =C12 -> 0.22948 | K12: MCE's rate is | L12: higher by | M12: 0.00992 | N12: per kWh
A13: … above Baseline | B13: =C13-VLOOKUP($A$7,Rates!$A$20:$H$33,5,0)+VLOOKUP($A$7,Rates!$A$36:$H$49,5,0)+VLOOKUP(MAX('Data & Calculations'!$A$35:$A$46),'Data & Calculations'!$A$35:$D$46,4,0) -> 0.3177 | C13: =VLOOKUP(A$7,Rates!$A$2:$AB$18,15,0) -> 0.31778 | D13: MCE's rate is | E13: lower by | F13: 8e-05 | G13: per kWh | I13: =B13+0.01 -> 0.3277 | J13: =C13 -> 0.31778 | K13: MCE's rate is | L13: higher by | M13: 0.00992 | N13: per kWh
A14: Winter Peak
A15: … up to Baseline | B15: =C15-VLOOKUP($A$7,Rates!$A$20:$H$33,6,0)+VLOOKUP($A$7,Rates!$A$36:$H$49,6,0)+VLOOKUP(MAX('Data & Calculations'!$A$35:$A$46),'Data & Calculations'!$A$35:$D$46,4,0) -> 0.18713 | C15: =VLOOKUP(A$7,Rates!$A$2:$AB$18,6,0) -> 0.18709 | D15: MCE's rate is | E15: higher by | F15: 4e-05 | G15: per kWh | I15: =B15+0.01 -> 0.19713 | J15: =C15 -> 0.18709 | K15: MCE's rate is | L15: higher by | M15: 0.01004 | N15: per kWh
A16: … above Baseline | B16: =C16-VLOOKUP($A$7,Rates!$A$20:$H$33,6,0)+VLOOKUP($A$7,Rates!$A$36:$H$49,6,0)+VLOOKUP(MAX('Data & Calculations'!$A$35:$A$46),'Data & Calculations'!$A$35:$D$46,4,0) -> 0.27543 | C16: =VLOOKUP(A$7,Rates!$A$2:$AB$18,16,0) -> 0.27539 | D16: MCE's rate is | E16: higher by | F16: 4e-05 | G16: per kWh | I16: =B16+0.01 -> 0.28543 | J16: =C16 -> 0.27539 | K16: MCE's rate is | L16: higher by | M16: 0.01004 | N16: per kWh
A17: Winter Off Peak
A18: … up to Baseline | B18: =C18-VLOOKUP($A$7,Rates!$A$20:$H$33,8,0)+VLOOKUP($A$7,Rates!$A$36:$H$49,8,0)+VLOOKUP(MAX('Data & Calculations'!$A$35:$A$46),'Data & Calculations'!$A$35:$D$46,4,0) -> 0.17297 | C18: =VLOOKUP(A$7,Rates!$A$2:$AB$18,8,0) -> 0.17279 | D18: MCE's rate is | E18: higher by | F18: 0.00018 | G18: per kWh | I18: =B18+0.01 -> 0.18297 | J18: =C18 -> 0.17279 | K18: MCE's rate is | L18: higher by | M18: 0.01018 | N18: per kWh
A19: … above Baseline | B19: =C19-VLOOKUP($A$7,Rates!$A$20:$H$33,8,0)+VLOOKUP($A$7,Rates!$A$36:$H$49,8,0)+VLOOKUP(MAX('Data & Calculations'!$A$35:$A$46),'Data & Calculations'!$A$35:$D$46,4,0) -> 0.26127 | C19: =VLOOKUP(A$7,Rates!$A$2:$AB$18,18,0) -> 0.26109 | D19: MCE's rate is | E19: higher by | F19: 0.00018 | G19: per kWh | I19: =B19+0.01 -> 0.27127 | J19: =C19 -> 0.26109 | K19: MCE's rate is | L19: higher by | M19: 0.01018 | N19: per kWh
A21: =Rates!A6 -> E-TOU-B | B21: MCE Rebundled | C21: PG&E Bundled | D21: Result | I21: MCE Rebundled | J21: PG&E Bundled | K21: Result
A22: Summer Peak | B22: =C22-VLOOKUP($A$21,Rates!$A$20:$H$33,3,0)+VLOOKUP($A$21,Rates!$A$36:$H$49,3,0)+VLOOKUP(MAX('Data & Calculations'!$A$35:$A$46),'Data & Calculations'!$A$35:$D$46,4,0) -> 0.36244 | C22: =VLOOKUP(A$21,Rates!$A$2:$AB$18,3,0) -> 0.36335 | D22: MCE's rate is | E22: =IF(B22<C22,"lower by","higher by") -> lower by | F22: =ABS(C22-B22) -> 0.00091 | G22: per kWh | I22: =B22+0.01 -> 0.37244 | J22: =C22 -> 0.36335 | K22: MCE's rate is | L22: =IF(I22<J22,"lower by","higher by") -> higher by | M22: =ABS(J22-I22) -> 0.00909 | N22: per kWh
A23: Summer Off Peak | B23: =C23-VLOOKUP($A$21,Rates!$A$20:$H$33,5,0)+VLOOKUP($A$21,Rates!$A$36:$H$49,5,0)+VLOOKUP(MAX('Data & Calculations'!$A$35:$A$46),'Data & Calculations'!$A$35:$D$46,4,0) -> 0.26041 | C23: =VLOOKUP(A$21,Rates!$A$2:$AB$18,5,0) -> 0.26029 | D23: MCE's rate is | E23: =IF(B23<C23,"lower by","higher by") -> higher by | F23: =ABS(C23-B23) -> 0.00012 | G23: per kWh | I23: =B23+0.01 -> 0.27041 | J23: =C23 -> 0.26029 | K23: MCE's rate is | L23: =IF(I23<J23,"lower by","higher by") -> higher by | M23: =ABS(J23-I23) -> 0.01012 | N23: per kWh
A24: Winter Peak | B24: =C24-VLOOKUP($A$21,Rates!$A$20:$H$33,6,0)+VLOOKUP($A$21,Rates!$A$36:$H$49,6,0)+VLOOKUP(MAX('Data & Calculations'!$A$35:$A$46),'Data & Calculations'!$A$35:$D$46,4,0) -> 0.22605 | C24: =VLOOKUP(A$21,Rates!$A$2:$AB$18,6,0) -> 0.22588 | D24: MCE's rate is | E24: higher by | F24: 0.00017 | G24: per kWh | I24: =B24+0.01 -> 0.23605 | J24: =C24 -> 0.22588 | K24: MCE's rate is | L24: higher by | M24: 0.01017 | N24: per kWh
A25: Winter Off Peak | B25: =C25-VLOOKUP($A$21,Rates!$A$20:$H$33,8,0)+VLOOKUP($A$21,Rates!$A$36:$H$49,8,0)+VLOOKUP(MAX('Data & Calculations'!$A$35:$A$46),'Data & Calculations'!$A$35:$D$46,4,0) -> 0.20744 | C25: =VLOOKUP(A$21,Rates!$A$2:$AB$18,8,0) -> 0.20708 | D25: MCE's rate is | E25: higher by | F25: 0.00036 | G25: per kWh | I25: =B25+0.01 -> 0.21744 | J25: =C25 -> 0.20708 | K25: MCE's rate is | L25: higher by | M25: 0.01036 | N25: per kWh
A27: =Rates!A9 -> EV-A | B27: MCE Rebundled | C27: PG&E Bundled | D27: Result | I27: MCE Rebundled | J27: PG&E Bundled | K27: Result
A28: Summer Peak | B28: =C28-VLOOKUP($A$27,Rates!$A$20:$H$33,3,0)+VLOOKUP($A$27,Rates!$A$36:$H$49,3,0)+VLOOKUP(MAX('Data & Calculations'!$A$35:$A$46),'Data & Calculations'!$A$35:$D$46,4,0) -> 0.45158 | C28: =VLOOKUP(A$27,Rates!$A$2:$AB$18,3,0) -> 0.45389 | D28: MCE's rate is | E28: =IF(B28<C28,"lower by","higher by") -> lower by | F28: =ABS(C28-B28) -> 0.00231 | G28: per kWh | I28: =B28+0.01 -> 0.46158 | J28: =C28 -> 0.45389 | K28: MCE's rate is | L28: =IF(I28<J28,"lower by","higher by") -> higher by | M28: =ABS(J28-I28) -> 0.00769 | N28: per kWh
A29: Summer Partial Peak | B29: =C29-VLOOKUP($A$27,Rates!$A$20:$H$33,4,0)+VLOOKUP($A$27,Rates!$A$36:$H$49,4,0)+VLOOKUP(MAX('Data & Calculations'!$A$35:$A$46),'Data & Calculations'!$A$35:$D$46,4,0) -> 0.24875 | C29: =VLOOKUP(A$27,Rates!$A$2:$AB$18,4,0) -> 0.24986 | D29: MCE's rate is | E29: =IF(B29<C29,"lower by","higher by") -> lower by | F29: =ABS(C29-B29) -> 0.00111 | G29: per kWh | I29: =B29+0.01 -> 0.25875 | J29: =C29 -> 0.24986 | K29: MCE's rate is | L29: =IF(I29<J29,"lower by","higher by") -> higher by | M29: =ABS(J29-I29) -> 0.00889 | N29: per kWh
A30: Summer Off Peak | B30: =C30-VLOOKUP($A$27,Rates!$A$20:$H$33,5,0)+VLOOKUP($A$27,Rates!$A$36:$H$49,5,0)+VLOOKUP(MAX('Data & Calculations'!$A$35:$A$46),'Data & Calculations'!$A$35:$D$46,4,0) -> 0.12169 | C30: =VLOOKUP(A$27,Rates!$A$2:$AB$18,5,0) -> 0.12225 | D30: MCE's rate is | E30: lower by | F30: 0.00056 | G30: per kWh | I30: =B30+0.01 -> 0.13169 | J30: =C30 -> 0.12225 | K30: MCE's rate is | L30: higher by | M30: 0.00944 | N30: per kWh
A31: Winter Peak | B31: =C31-VLOOKUP($A$27,Rates!$A$20:$H$33,6,0)+VLOOKUP($A$27,Rates!$A$36:$H$49,6,0)+VLOOKUP(MAX('Data & Calculations'!$A$35:$A$46),'Data & Calculations'!$A$35:$D$46,4,0) -> 0.31932 | C31: =VLOOKUP(A$27,Rates!$A$2:$AB$18,6,0) -> 0.32018 | D31: MCE's rate is | E31: lower by | F31: 0.00086 | G31: per kWh | I31: =B31+0.01 -> 0.32932 | J31: =C31 -> 0.32018 | K31: MCE's rate is | L31: higher by | M31: 0.00914 | N31: per kWh
A32: Winter Partial Peak | B32: =C32-VLOOKUP($A$27,Rates!$A$20:$H$33,7,0)+VLOOKUP($A$27,Rates!$A$36:$H$49,7,0)+VLOOKUP(MAX('Data & Calculations'!$A$35:$A$46),'Data & Calculations'!$A$35:$D$46,4,0) -> 0.1974 | C32: =VLOOKUP(A$27,Rates!$A$2:$AB$18,7,0) -> 0.19794 | D32: MCE's rate is | E32: =IF(B32<C32,"lower by","higher by") -> lower by | F32: =ABS(C32-B32) -> 0.00054 | G32: per kWh | I32: =B32+0.01 -> 0.2074 | J32: =C32 -> 0.19794 | K32: MCE's rate is | L32: =IF(I32<J32,"lower by","higher by") -> higher by | M32: =ABS(J32-I32) -> 0.00946 | N32: per kWh
A33: Winter Off Peak | B33: =C33-VLOOKUP($A$27,Rates!$A$20:$H$33,8,0)+VLOOKUP($A$27,Rates!$A$36:$H$49,8,0)+VLOOKUP(MAX('Data & Calculations'!$A$35:$A$46),'Data & Calculations'!$A$35:$D$46,4,0) -> 0.12445 | C33: =VLOOKUP(A$27,Rates!$A$2:$AB$18,8,0) -> 0.12503 | D33: MCE's rate is | E33: lower by | F33: 0.00058 | G33: per kWh | I33: 0.13445 | J33: 0.12503 | K33: MCE's rate is | L33: higher by | M33: 0.00942 | N33: per kWh
A35: =Rates!A10 -> EV-B | B35: MCE Rebundled | C35: PG&E Bundled | D35: Result | I35: MCE Rebundled | J35: PG&E Bundled | K35: Result
A36: Summer Peak | B36: =C36-VLOOKUP($A$35,Rates!$A$20:$H$33,3,0)+VLOOKUP($A$35,Rates!$A$36:$H$49,3,0)+VLOOKUP(MAX('Data & Calculations'!$A$35:$A$46),'Data & Calculations'!$A$35:$D$46,4,0) -> 0.44507 | C36: =VLOOKUP(A$35,Rates!$A$2:$AB$18,3,0) -> 0.44738 | D36: MCE's rate is | E36: =IF(B36<C36,"lower by","higher by") -> lower by | F36: =ABS(C36-B36) -> 0.00231 | G36: per kWh | I36: =B36+0.01 -> 0.45507 | J36: =C36 -> 0.44738 | K36: MCE's rate is | L36: =IF(I36<J36,"lower by","higher by") -> higher by | M36: =ABS(J36-I36) -> 0.00769 | N36: per kWh
A37: Summer Partial Peak | B37: =C37-VLOOKUP($A$35,Rates!$A$20:$H$33,4,0)+VLOOKUP($A$35,Rates!$A$36:$H$49,4,0)+VLOOKUP(MAX('Data & Calculations'!$A$35:$A$46),'Data & Calculations'!$A$35:$D$46,4,0) -> 0.24549 | C37: =VLOOKUP(A$35,Rates!$A$2:$AB$18,4,0) -> 0.2466 | D37: MCE's rate is | E37: =IF(B37<C37,"lower by","higher by") -> lower by | F37: =ABS(C37-B37) -> 0.00111 | G37: per kWh | I37: =B37+0.01 -> 0.25549 | J37: =C37 -> 0.2466 | K37: MCE's rate is | L37: =IF(I37<J37,"lower by","higher by") -> higher by | M37: =ABS(J37-I37) -> 0.00889 | N37: per kWh
A38: Summer Off Peak | B38: =C38-VLOOKUP($A$35,Rates!$A$20:$H$33,5,0)+VLOOKUP($A$35,Rates!$A$36:$H$49,5,0)+VLOOKUP(MAX('Data & Calculations'!$A$35:$A$46),'Data & Calculations'!$A$35:$D$46,4,0) -> 0.12123 | C38: =VLOOKUP(A$35,Rates!$A$2:$AB$18,5,0) -> 0.12179 | D38: MCE's rate is | E38: lower by | F38: 0.00056 | G38: per kWh | I38: =B38+0.01 -> 0.13123 | J38: =C38 -> 0.12179 | K38: MCE's rate is | L38: higher by | M38: 0.00944 | N38: per kWh
A39: Winter Peak | B39: =C39-VLOOKUP($A$35,Rates!$A$20:$H$33,6,0)+VLOOKUP($A$35,Rates!$A$36:$H$49,6,0)+VLOOKUP(MAX('Data & Calculations'!$A$35:$A$46),'Data & Calculations'!$A$35:$D$46,4,0) -> 0.31239 | C39: =VLOOKUP(A$35,Rates!$A$2:$AB$18,6,0) -> 0.31325 | D39: MCE's rate is | E39: lower by | F39: 0.00086 | G39: per kWh | I39: =B39+0.01 -> 0.32239 | J39: =C39 -> 0.31325 | K39: MCE's rate is | L39: higher by | M39: 0.00914 | N39: per kWh
A40: Winter Partial Peak | B40: =C40-VLOOKUP($A$35,Rates!$A$20:$H$33,7,0)+VLOOKUP($A$35,Rates!$A$36:$H$49,7,0)+VLOOKUP(MAX('Data & Calculations'!$A$35:$A$46),'Data & Calculations'!$A$35:$D$46,4,0) -> 0.19393 | C40: =VLOOKUP(A$35,Rates!$A$2:$AB$18,7,0) -> 0.19447 | D40: MCE's rate is | E40: lower by | F40: 0.00054 | G40: per kWh | I40: =B40+0.01 -> 0.20393 | J40: =C40 -> 0.19447 | K40: MCE's rate is | L40: higher by | M40: 0.00946 | N40: per kWh
A41: Winter Off Peak | B41: =C41-VLOOKUP($A$35,Rates!$A$20:$H$33,8,0)+VLOOKUP($A$35,Rates!$A$36:$H$49,8,0)+VLOOKUP(MAX('Data & Calculations'!$A$35:$A$46),'Data & Calculations'!$A$35:$D$46,4,0) -> 0.12395 | C41: =VLOOKUP(A$35,Rates!$A$2:$AB$18,8,0) -> 0.12453 | D41: MCE's rate is | E41: lower by | F41: 0.00058 | G41: per kWh | I41: 0.13395 | J41: 0.12453 | K41: MCE's rate is | L41: higher by | M41: 0.00942 | N41: per kWh
A43: ----- Closed to New Customers (ignores tiering, which is competitively irrelevant) -----
A44: =Rates!A13 -> E-6 (Time-of-Use) | B44: MCE Rebundled | C44: PG&E Bundled | D44: Result | I44: MCE Rebundled | J44: PG&E Bundled | K44: Result
A45: Summer Peak | B45: =C45-VLOOKUP($A$44,Rates!$A$20:$H$33,3,0)+VLOOKUP($A$44,Rates!$A$36:$H$49,3,0)+VLOOKUP(MAX('Data & Calculations'!$A$35:$A$46),'Data & Calculations'!$A$35:$D$46,4,0) -> 0.35716 | C45: =VLOOKUP(A$44,Rates!$A$2:$AB$18,3,0) -> 0.35933 | D45: MCE's rate is | E45: =IF(B45<C45,"lower by","higher by") -> lower by | F45: =ABS(C45-B45) -> 0.00217 | G45: per kWh | I45: =B45+0.01 -> 0.36716 | J45: =C45 -> 0.35933 | K45: MCE's rate is | L45: =IF(I45<J45,"lower by","higher by") -> higher by | M45: =ABS(J45-I45) -> 0.00783 | N45: per kWh
A46: Summer Partial Peak | B46: =C46-VLOOKUP($A$44,Rates!$A$20:$H$33,4,0)+VLOOKUP($A$44,Rates!$A$36:$H$49,4,0)+VLOOKUP(MAX('Data & Calculations'!$A$35:$A$46),'Data & Calculations'!$A$35:$D$46,4,0) -> 0.24292 | C46: =VLOOKUP(A$44,Rates!$A$2:$AB$18,4,0) -> 0.24406 | D46: MCE's rate is | E46: =IF(B46<C46,"lower by","higher by") -> lower by | F46: =ABS(C46-B46) -> 0.00114 | G46: per kWh | I46: =B46+0.01 -> 0.25292 | J46: =C46 -> 0.24406 | K46: MCE's rate is | L46: =IF(I46<J46,"lower by","higher by") -> higher by | M46: =ABS(J46-I46) -> 0.00886 | N46: per kWh
A47: Summer Off Peak | B47: =C47-VLOOKUP($A$44,Rates!$A$20:$H$33,5,0)+VLOOKUP($A$44,Rates!$A$36:$H$49,5,0)+VLOOKUP(MAX('Data & Calculations'!$A$35:$A$46),'Data & Calculations'!$A$35:$D$46,4,0) -> 0.16656 | C47: =VLOOKUP(A$44,Rates!$A$2:$AB$18,5,0) -> 0.16728 | D47: MCE's rate is | E47: lower by | F47: 0.00072 | G47: per kWh | I47: =B47+0.01 -> 0.17656 | J47: =C47 -> 0.16728 | K47: MCE's rate is | L47: higher by | M47: 0.00928 | N47: per kWh
A48: Winter Partial Peak | B48: =C48-VLOOKUP($A$44,Rates!$A$20:$H$33,7,0)+VLOOKUP($A$44,Rates!$A$36:$H$49,7,0)+VLOOKUP(MAX('Data & Calculations'!$A$35:$A$46),'Data & Calculations'!$A$35:$D$46,4,0) -> 0.1875 | C48: =VLOOKUP(A$44,Rates!$A$2:$AB$18,7,0) -> 0.18845 | D48: MCE's rate is | E48: lower by | F48: 0.00095 | G48: per kWh | I48: =B48+0.01 -> 0.1975 | J48: =C48 -> 0.18845 | K48: MCE's rate is | L48: higher by | M48: 0.00905 | N48: per kWh
A49: Winter Off Peak | B49: =C49-VLOOKUP($A$44,Rates!$A$20:$H$33,8,0)+VLOOKUP($A$44,Rates!$A$36:$H$49,8,0)+VLOOKUP(MAX('Data & Calculations'!$A$35:$A$46),'Data & Calculations'!$A$35:$D$46,4,0) -> 0.17078 | C49: =VLOOKUP(A$44,Rates!$A$2:$AB$18,8,0) -> 0.17162 | D49: MCE's rate is | E49: lower by | F49: 0.00084 | G49: per kWh | I49: 0.18078 | J49: 0.17162 | K49: MCE's rate is | L49: higher by | M49: 0.00916 | N49: per kWh
A51: Note: Rebundled rates assume the most current PCIA vintage. Other vintages may result in small adjustments to the above rates.

Sheet Changelog (hidden)
A1: Date | B1: Change
A2: 2016-04-29 | B2: Beta version completed, to staff for review.
A3: 2016-05-04 | B3: Cosmetic Changes
B4: Corrected EV rate description
B5: Hid and locked cell editing for public use to restrict potentially breaking calculations
A6: 2016-05-23 | B6: Replaced IFNA command with IFERROR; IFNA is not well supported in Excel. May need to replace with IF(ISERROR()) later.
A7: 2016-11-15 | B7: Rebundled Rates Added
A8: 2017-01-03 | B8: Updated for PG&E AET
A9: 2017-03-01 | B9: Changes for PG&E 3/1 change (tiers, etc)
B10: Updated Local Sol implementation date
B11: Added MCE 4/1 Rates
